Cogmind - Beta 13 @@@ ROGUE MODE // 2024.04.15 @ 22:05:52 Player: Cheeriohz Result: Destroyed by G-47 Trooper with Particle Gun Performance ------------- Evolutions (3) 1500 Regions Visited (12) 2400 Robots Destroyed (163) 815 Value Destroyed (5515) 5515 Prototype IDs (15) 300 Alien Tech Used (0) 0 Bonus (1699) 1699 TOTAL SCORE: 12229 Bonus ------- High Alert Combat Kills 613 Follower Combat Kills 461 Entered Garrisons 400 Acquired ECA 300 Friendly Fire -75 Cogmind --------- Core Integrity 0/700 Matter 130/300 Energy 19/100 System Corruption 2% Temperature Critical (564) Movement Core (50) Location -7/Lower Caves Parts ------- > --- POWER (1) -------- (None) > --- PROPULSION (4) --- (None) > --- UTILITY (6) ------ (None) > --- WEAPON (2) ------- (None) > --- INVENTORY (5) ---- Improved Sensor Array Weapon Cycler System Shield Smartbomb Launcher Peak State ------------ > --- POWER ------------ Micro Fission Core > --- PROPULSION ------- Flightbrick > --- UTILITY ---------- Improved Cooling System Advanced Visual Processing Unit Improved Signal Interpreter Targeting Computer Improved Targeting Computer Energy Filter Improved Medium Armor Plating Medium Reactive Plating > --- WEAPON ----------- Gatling Laser Makeshift Axe > --- INVENTORY -------- Hardlight Generator Dynamic Insulation System Advanced Assault Cannon Hardcell Cannon [Rating: 76] Favorites ----------- Power Ion Engine Engine Ion Engine Power Core Micro Fission Core Reactor Antimatter Reactor Propulsion Light Treads Treads Light Treads Leg Aluminum Leg Flight Unit Flightbrick Utility High-capacity Storage Unit Device Hardlight Generator Storage High-capacity Storage Unit Processor Improved Targeting Computer Hackware Makeshift Hacking Suite Protection Scrap Shield Weapon Gauss Cannon Energy Gun Subdweller Laser Energy Cannon Subdweller Beam Cannon Ballistic Gun Subdweller Machine Gun Ballistic Cannon Gauss Cannon Launcher Grenade Launcher Impact Weapon Powered Hammer Slashing Weapon Makeshift Axe Build | -11 -10 -10 -8 -8 -8 -8 -8 -7 -7 -7 -7 -7 ------- Run | Yrd Mat Sub Mat Gar Mat Gar Mat Fac Was Fac Low Low Slots Evolved 6 | . . . 4 . . . . 2 . . . . Power . | . . . . . . . . . . . . . Propulsion 2 | . . . 2 . . . . . . . . . Utility 4 | . . . 2 . . . . 2 . . . . Weapon . | . . . . . . . . . . . . . Parts Attached 222 | . 10 30 22 13 3 25 26 31 10 30 9 13 Power 20 | . . 4 2 . . 3 1 1 2 5 1 1 Engine 11 | . . 4 2 . . 2 1 . . 1 1 . Core 8 | . . . . . . 1 . 1 1 4 . 1 Reactor 1 | . . . . . . . . . 1 . . . Propulsion 42 | . 2 3 6 4 . 4 17 3 . 3 . . Treads 28 | . 2 3 6 4 . . 8 2 . 3 . . Leg 13 | . . . . . . 4 9 . . . . . Wheel . | . . . . . . . . . . . . . Hover . | . . . . . . . . . . . . . Flight 1 | . . . . . . . . 1 . . . . Utility 83 | . 3 6 6 5 2 9 6 13 6 19 2 6 Device 36 | . . 1 2 3 . 5 . 7 5 9 . 4 Storage 7 | . 2 1 1 . . 1 . . . 1 1 . Processor 10 | . 1 . . . 1 . . 2 . 6 . . Hackware 5 | . . . . 1 . . 1 1 . 2 . . Protection 25 | . . 4 3 1 1 3 5 3 1 1 1 2 Artifact . | . . . . . . . . . . . . . Weapon 77 | . 5 17 8 4 1 9 2 14 2 3 6 6 Energy Gun 5 | . . 2 . . . . . . . 1 . 2 Energy Cannon 8 | . . 3 2 . . 1 . 2 . . . . Ballistic Gun 7 | . 2 3 . . . . . 1 1 . . . Ballistic Cannon 32 | . 2 6 5 2 1 4 1 5 1 1 2 2 Launcher 16 | . 1 3 1 1 . 3 . 4 . . 2 1 Special Weapon . | . . . . . . . . . . . . . Impact Weapon 4 | . . . . . . . . . . 1 2 1 Slashing Weapon 5 | . . . . 1 . 1 1 2 . . . . Piercing Weapon . | . . . . . . . . . . . . . Special Melee Weapon . | . . . . . . . . . . . . . Unidentified Prototypes 4 | . . . 2 . . . . . 1 1 . . Parts Lost 37 | . 1 2 . 1 . 5 3 15 . . . 10 Power 4 | . . 1 . . . 1 . 1 . . . 1 Propulsion 11 | . . . . . . 3 1 4 . . . 3 Utility 14 | . . 1 . 1 . 1 1 6 . . . 4 Weapon 8 | . 1 . . . . . 1 4 . . . 2 Highest Loss Streak 14 | . 1 1 . 1 . 3 1 14 . . . 9 To Critical Strikes . | . . . . . . . . . . . . . Average Slot Usage (%) 89 | . 99 87 95 99 100 82 98 90 36 76 91 88 Engine 9 | . 14 13 9 9 9 5 8 6 . . 4 6 Core 1 | . . . . . . 2 . . 4 6 2 . Treads 23 | . 21 28 35 36 36 14 9 26 . 3 23 21 Leg 2 | . 6 . . . . 13 25 . . . . . Device 5 | . . . 10 4 . 11 9 7 8 11 6 11 Storage 6 | . 17 2 9 9 9 7 9 6 . 1 7 7 Processor 4 | . 9 . . . . . . 3 6 23 15 15 Hackware 4 | . . . . 8 9 9 10 13 . 4 15 7 Protection 8 | . . 13 12 14 18 4 6 9 2 5 . 1 Energy Gun 1 | . 1 2 1 . . . . . . 3 . . Energy Cannon 2 | . . 4 . . . 2 9 1 . . . . Ballistic Gun 3 | . 14 5 . . . . . 2 . . . . Ballistic Cannon 10 | . 11 12 16 15 9 7 4 6 . 1 6 7 Slashing Weapon 1 | . . . . 2 9 3 4 1 6 3 . . Naked Turns . | . . . . . . . . . . . . . Heaviest Build 87 | 13 51 36 87 80 71 75 75 79 32 35 63 74 Greatest Support 118 | 20 40 40 82 82 80 80 82 90 24 118 118 118 Greatest Overweight (x) 9 | . 2 . 1 . . 2 1 2 1 9 . 1 Average Overweight (x) . | . . . . . . . . . . . . . Largest Inventory Capacity 20 | . 15 15 20 20 20 20 20 20 5 15 20 20 Average Capacity 13 | . 14 6 19 20 20 17 20 18 5 6 18 20 Most Carried 20 | . 15 15 20 20 20 20 20 20 5 15 20 20 Average Carried 12 | . 13 6 19 19 19 15 19 18 4 5 17 18 Final Capacity 20 | 8 15 15 20 20 20 20 20 5 5 15 20 5 Final Carried 20 | 6 15 15 20 20 20 20 20 4 5 15 20 5 Class Distribution -------------------- 59% | Mutant 18% | Scavenger-Mutant 9% | Hacker-Mutant 8% | Subdweller-Mutant Dominant Class ---------------- Mutant | -10/Materials Mutant | -10/Subcaves Mutant | -8/Materials Scavenger-Mutant | -8/Garrison Scavenger-Mutant | -8/Materials Scavenger-Mutant | -8/Garrison Mutant | -8/Materials Scavenger-Mutant | -7/Factory Mutant | -7/Waste Mutant | -7/Factory Hacker-Mutant | -7/Lower Caves Mutant | -7/Lower Caves Resources | -11 -10 -10 -8 -8 -8 -8 -8 -7 -7 -7 -7 -7 ----------- Run | Yrd Mat Sub Mat Gar Mat Gar Mat Fac Was Fac Low Low Matter Collected 5671 | 168 320 819 638 665 . 663 738 523 232 282 276 347 Remotely 908 | . . . . 126 . 88 . 416 . 105 . 173 Salvage Created 4935 | . 442 625 720 313 . 346 969 460 . 355 252 453 Parts 315 | . 31 51 43 45 . 21 53 25 . 24 11 11 Haulers Intercepted 4 | . 1 . 1 . . . 1 . . 1 . . Recyclers Shooed 4 | . . . 2 . . . . 2 . . . . Parts Field Recycled . | . . . . . . . . . . . . . Retrieved Matter . | . . . . . . . . . . . . . Parts Self-Destructed 38 | . . 23 . . . . . . . . 5 10 Prevented . | . . . . . . . . . . . . . Kills | -11 -10 -10 -8 -8 -8 -8 -8 -7 -7 -7 -7 -7 ------- Run | Yrd Mat Sub Mat Gar Mat Gar Mat Fac Was Fac Low Low Combat Hostiles Destroyed 137 | . 10 22 14 19 . 16 18 12 . 4 9 13 Melee 11 | . . . . . . 1 7 . . 3 . . Guns 12 | . 7 3 1 . . . . 1 . . . . Cannons 75 | . 3 14 8 13 . 7 10 9 . 1 1 9 AOE 39 | . . 5 5 6 . 8 1 2 . . 8 4 Classes Destroyed 17 | . 5 1 6 3 . 1 . . . . . 1 Worker 2 | . 1 . . . . . 1 . . . . . Builder 7 | . 2 . . . . . 2 1 . 2 . . Hauler 4 | . 1 . 1 . . . 1 . . 1 . . Recycler 5 | . . . 2 . . . . 2 . 1 . . Mechanic 1 | . . . 1 . . . . . . . . . Operator 3 | . . . 1 . . . 1 1 . . . . Watcher 4 | . . . 1 . . . 1 . . 2 . . Swarmer 33 | . 3 3 3 9 . 4 . 4 . 1 4 2 Cutter 3 | . . . . . . 3 . . . . . . Grunt 50 | . 7 . 8 4 . 7 11 6 . . 3 4 Brawler 6 | . . . . 1 . . 1 . . . 1 3 Duelist 3 | . . . . . . . . . . . . 3 Protector 1 | . . . . 1 . . . . . . . . Sentry 13 | . . . 2 2 . 2 6 . . . . 1 Hunter 2 | . . . 1 . . . . 1 . . . . Programmer 7 | . . . . 2 . . . 1 . 3 1 . Subdweller 19 | . . 19 . . . . . . . . . . Decomposer 2 | . . . . . . . . . . . 1 1 Packrat 1 | . . . . . . . . . . . 1 . Best Kill Streak 8 | . 4 4 7 6 . 7 5 5 . 1 4 8 Combat Bots Only 8 | . 3 4 6 6 . 7 3 4 . 1 4 8 Max Kills in Single Turn 5 | . 1 3 3 5 . 2 3 2 . 1 3 2 Gunslinging . | . . . . . . . . . . . . . Exploded 5 | . . 3 2 5 . 2 1 2 . . 3 2 Melee 1 | . . . . . . 1 1 . . 1 . . Uniques/NPCs Destroyed . | . . . . . . . . . . . . . Combat | -11 -10 -10 -8 -8 -8 -8 -8 -7 -7 -7 -7 -7 -------- Run | Yrd Mat Sub Mat Gar Mat Gar Mat Fac Was Fac Low Low Hostile Shots Fired 1024 | . 39 117 52 84 . 80 75 376 . 48 13 140 Missed 334 | . 10 31 14 16 . 25 26 145 . 21 6 40 Damage Taken 10935 | . 299 1907 482 623 . 918 990 3426 . 463 108 1719 Core 1140 | . 35 169 . 63 . 86 79 492 . 30 . 186 Absorbed by Shields 466 | . . . 72 331 . . . 23 . . . 40 Redirected to Shielding 84 | . . . . . . . 84 . . . . . Ignored by Resistances 244 | . . . . 99 . . 20 125 . . . . Regen/Repaired (Parts) 110 | . . . . . 84 . . . . 26 . . Core Remaining (%) 58 | 100 . 18 . . . . 58 . . . . . Volleys Fired 442 | . 46 171 27 45 . 36 33 42 . 3 13 26 Largest 2 | . 2 2 2 2 . 2 2 2 . 1 1 2 Hottest 160 | . 60 119 99 96 . 96 155 146 . 80 48 160 Shots Fired 670 | . 82 209 54 75 . 63 54 73 . 4 13 43 Gun 163 | . 66 83 5 . . . . 2 . 2 . 5 Cannon 456 | . 15 116 46 72 . 54 54 58 . 2 4 35 Launcher 51 | . 1 10 3 3 . 9 . 13 . . 9 3 Special . | . . . . . . . . . . . . . Kinetic 479 | . 73 128 46 72 . 53 22 44 . 2 4 35 Thermal 137 | . . 76 5 . . 1 32 16 . 2 . 5 Explosive 45 | . 1 5 3 3 . 9 . 12 . . 9 3 Electromagnetic 9 | . 8 . . . . . . 1 . . . . Robot Hit Streak 44 | . 19 44 5 11 . 10 8 9 . 1 7 20 Robot Miss Streak 6 | . 3 3 2 3 . 3 2 3 . 6 2 2 Penetration Max . | . . . . . . . . . . . . . Secondary Targets 1 | . 1 . . . . . . . . . . . Max Gunslinging Chain 1 | . 1 . . . . . . . . . . . Shots Hit Robots 388 | . 55 74 32 44 . 34 52 33 . 22 9 33 Core Hits 233 | . 21 33 31 23 . 23 25 36 . 6 12 23 Critical Kills . | . . . . . . . . . . . . . Critical Parts Destroyed 1 | . . . . . . . . . . 1 . . Critical Strikes 19 | . . 2 1 4 . 7 . 3 . 1 . 1 Blast 18 | . . 2 1 4 . 7 . 3 . . . 1 Smash 1 | . . . . . . . . . . 1 . . Melee Attacks 142 | . . . . 33 . 7 25 5 . 69 2 1 Impact 30 | . . . . . . . . . . 27 2 1 Slashing 112 | . . . . 33 . 7 25 5 . 42 . . Piercing . | . . . . . . . . . . . . . Sneak Attacks 9 | . . . . . . . 1 1 . 4 2 1 Combat Hostiles . | . . . . . . . . . . . . . Follow-up Attacks . | . . . . . . . . . . . . . Damage Inflicted 14999 | . 678 1805 993 1471 . 1748 2195 2150 . 1096 1340 1523 Guns 1005 | . 542 209 104 . . . . 18 . 11 . 121 Cannons 6693 | . 136 1087 598 1103 . 834 1101 927 . 32 70 805 Explosions 5162 | . . 509 291 368 . 873 343 1134 . . 1098 546 Melee 2139 | . . . . . . 41 751 71 . 1053 172 51 Ramming . | . . . . . . . . . . . . . Kinetic 6255 | . 610 972 598 1103 . 834 420 811 . 32 70 805 Thermal 1825 | . . 515 104 . . . 681 393 . 11 . 121 Explosive 4569 | . . 318 291 368 . 873 343 732 . . 1098 546 Electromagnetic 211 | . 68 . . . . . . 143 . . . . Impact 895 | . . . . . . . . . . 672 172 51 Slashing 1244 | . . . . . . 41 751 71 . 381 . . Piercing . | . . . . . . . . . . . . . Highest Corruption 8 | . . . 5 8 8 8 8 3 3 3 2 2 Average Corruption 5 | . . . 5 7 8 8 8 2 3 1 2 2 Corruption Purged 5 | . . . . . . . . . . 5 . . Corruption Blocked . | . . . . . . . . . . . . . Effects 185 | . . . 21 57 6 33 28 2 1 16 15 6 Message Errors 42 | . . . 4 15 1 8 4 1 . 2 6 1 Matter Fused 50 | . . . 5 16 2 9 7 . 1 6 2 2 Heat Flow Errors 13 | . . . 2 2 . 3 3 . . 1 2 . Energy Discharges 20 | . . . 3 7 . 2 4 . . 2 1 1 Parts Rejected 3 | . . . . 1 . . 2 . . . . . Parts Fused 6 | . . . 2 2 . 1 . . . . 1 . Data Loss (minor) 22 | . . . 1 8 3 2 3 1 . 3 1 . Data Loss (major) 8 | . . . 1 1 . 1 2 . . . 2 1 Misfires 9 | . . . 3 2 . 3 . . . 1 . . Alerts 4 | . . . . . . 2 1 . . 1 . . Weapon Failures 8 | . . . . 3 . 2 2 . . . . 1 Overload Shots . | . . . . . . . . . . . . . Overflow Damage 765 | . . . . 17 . 84 121 143 . 229 136 35 Projectiles 91 | . . . . . . 30 19 41 . . . 1 Explosions 328 | . . . . 17 . 53 54 102 . . 102 . Melee 346 | . . . . . . 1 48 . . 229 34 34 Knockbacks 52 | . 2 3 11 7 . 5 3 11 . 1 . 9 Impact 1 | . . . . . . . . . . 1 . . Kinetic 47 | . 2 3 10 6 . 5 3 10 . . . 8 Secondary 4 | . . . 1 1 . . . 1 . . . 1 Self-Inflicted Damage 373 | . . 62 40 . . 96 . 162 . . . 13 Shots 11 | . . 3 1 . . 2 . 4 . . . 1 Rammed . | . . . . . . . . . . . . . Targets Rammed . | . . . . . . . . . . . . . Kicked . | . . . . . . . . . . . . . Crushed . | . . . . . . . . . . . . . Highest Temperature 651 | . 40 21 365 412 . 294 258 420 . 250 232 651 Average Temperature 113 | . 16 8 110 104 . 79 75 138 . 98 70 264 Received Heat Transfer 3101 | . 114 471 206 140 . 378 447 795 . 18 9 523 Effects 34 | . . . 3 1 . 1 . 2 . . . 27 Shutdowns 4 | . . . . . . . . . . . . 4 Energy Bleed 7 | . . . . . . 1 . . . . . 6 Interference 4 | . . . 2 . . . . 1 . . . 1 Matter Decay 2 | . . . . . . . . . . . . 2 Short Circuit 1 | . . . . . . . . 1 . . . . Damage (minor) 5 | . . . 1 1 . . . . . . . 3 Damage (major) 10 | . . . . . . . . . . . . 10 Damage (core) 1 | . . . . . . . . . . . . 1 Siege Activations 1 | . . . . . . . . . . . 1 . Total Turns 2 | . . . . . . . . . . . 2 . Longest Duration 2 | . . . . . . . . . . . 2 . Robots Corrupted . | . . . . . . . . . . . . . Combat Hostiles . | . . . . . . . . . . . . . Parts Fried 10 | . 2 . . . . . . . . 6 . 2 Impact Corruptions 9 | . . . . . . . . . . 7 1 1 Robots Melted . | . . . . . . . . . . . . . Combat Hostiles . | . . . . . . . . . . . . . Parts Melted 1 | . . 1 . . . . . . . . . . Heat Transferred 2528 | . . 703 125 . . . 1050 350 . 25 . 275 Parts Sabotaged . | . . . . . . . . . . . . . Parts Stolen . | . . . . . . . . . . . . . Parts Stripped . | . . . . . . . . . . . . . Power Chain Reactions . | . . . . . . . . . . . . . Alert | -11 -10 -10 -8 -8 -8 -8 -8 -7 -7 -7 -7 -7 ------- Run | Yrd Mat Sub Mat Gar Mat Gar Mat Fac Was Fac Low Low Peak Influence 1462 | . 143 . 499 1462 727 978 879 486 15 357 . . Initial 712 | . . . 221 209 712 472 476 315 15 10 . . Average 456 | . 47 . 349 1021 719 818 680 229 15 201 . . Maximum Alert Level 4 | . . . 2 4 3 3 3 2 . 1 . . Low Security (%) 32 | . 100 . 6 . . . . 55 100 35 . . Level 1 26 | . . . 66 15 . . . 31 . 64 . . Level 2 13 | . . . 27 1 . 32 55 13 . . . . Level 3 18 | . . . . 29 100 67 44 . . . . . Level 4 9 | . . . . 53 . . . . . . . . Level 5 . | . . . . . . . . . . . . . High Security . | . . . . . . . . . . . . . Max Security . | . . . . . . . . . . . . . Squads Dispatched 17 | . 2 . 2 . . . 3 5 . 4 . 1 Investigation 4 | . 2 . . . . . 2 . . . . . Extermination 3 | . . . . . . . . . . 3 . . Reinforcement 6 | . . . 2 . . . 1 2 . 1 . . Assault 1 | . . . . . . . . . . . . 1 Garrison 3 | . . . . . . . . 3 . . . . Intercept . | . . . . . . . . . . . . . Searches Triggered . | . . . . . . . . . . . . . Construction Impeded 1 | . . . . . . . . 1 . . . . Haulers Reinforced 2 | . . . . . . . . 1 . 1 . . Active Scanning Responses . | . . . . . . . . . . . . . Cargo Convoy Interrupts 1 | . . . . . . . . 1 . . . . Stealth | -11 -10 -10 -8 -8 -8 -8 -8 -7 -7 -7 -7 -7 --------- Run | Yrd Mat Sub Mat Gar Mat Gar Mat Fac Was Fac Low Low Distress Signals 9 | . 1 . 1 . . . 3 . . 4 . . Communications Jammed . | . . . . . . . . . . . . . Distress Signals . | . . . . . . . . . . . . . Times Spotted 248 | . 18 22 21 39 1 21 26 35 . 37 9 19 Peak Tracking Total 15 | . 4 6 8 11 1 7 5 15 . 9 4 9 Tactical Retreats 21 | . . 1 1 2 . 2 3 1 . 11 . . Traps | -11 -10 -10 -8 -8 -8 -8 -8 -7 -7 -7 -7 -7 ------- Run | Yrd Mat Sub Mat Gar Mat Gar Mat Fac Was Fac Low Low Traps Triggered 13 | . 2 4 . 1 . 1 1 1 . 3 . . Indirectly . | . . . . . . . . . . . . . Trap Hack Attempts . | . . . . . . . . . . . . . Triggered . | . . . . . . . . . . . . . Disarmed . | . . . . . . . . . . . . . Reprogrammed . | . . . . . . . . . . . . . Reused . | . . . . . . . . . . . . . Traps Extracted . | . . . . . . . . . . . . . Installed . | . . . . . . . . . . . . . Triggered . | . . . . . . . . . . . . . Most Traps Carried 1 | . . 1 . . . . . . . . . . Machines | -11 -10 -10 -8 -8 -8 -8 -8 -7 -7 -7 -7 -7 ---------- Run | Yrd Mat Sub Mat Gar Mat Gar Mat Fac Was Fac Low Low Machines Disabled 12 | . . 1 2 1 . 1 3 3 . . . 1 Max in Single Turn 2 | . . 1 1 1 . 1 2 1 . . . 1 Garrison Access 1 | . . . . . . . . 1 . . . . Machines Repaired . | . . . . . . . . . . . . . Machines Dismantled . | . . . . . . . . . . . . . Machines Sabotaged . | . . . . . . . . . . . . . Overloaded Fab Kills . | . . . . . . . . . . . . . Hacking | -11 -10 -10 -8 -8 -8 -8 -8 -7 -7 -7 -7 -7 --------- Run | Yrd Mat Sub Mat Gar Mat Gar Mat Fac Was Fac Low Low Machines Accessed 37 | . 3 2 6 4 3 1 2 5 . 11 . . Terminals 24 | . 3 . 4 4 1 1 2 3 . 6 . . Fabricators 1 | . . . . . . . . 1 . . . . Repair Stations 2 | . . . . . 1 . . . . 1 . . Recycling Units 3 | . . . . . . . . . . 3 . . Scanalyzers 1 | . . . 1 . . . . . . . . . Garrison Access 4 | . . . 1 . 1 . . 1 . 1 . . Total Hacks 87 | . 8 3 17 6 7 1 6 13 . 26 . . Successful 35 | . 2 3 5 3 3 1 1 5 . 12 . . Failed 52 | . 6 . 12 3 4 . 5 8 . 14 . . Catastrophic 4 | . . . . . . . 2 . . 2 . . Database Lockouts . | . . . . . . . . . . . . . Manual 51 | . 8 . 14 . 2 . 6 5 . 16 . . Terminals 61 | . 8 . 14 6 2 1 6 11 . 13 . . Fabricators 1 | . . . . . . . . 1 . . . . Repair Stations 6 | . . . . . 2 . . . . 4 . . Recycling Units 7 | . . . . . . . . . . 7 . . Scanalyzers 2 | . . . 2 . . . . . . . . . Garrison Access 7 | . . . 1 . 3 . . 1 . 2 . . Terminal Hacks 14 | . 2 3 . 3 . 1 1 3 . 1 . . Record 3 | . 1 2 . . . . . . . . . . Robot Analysis 1 | . 1 . . . . . . . . . . . Open Door 2 | . . . . 2 . . . . . . . . Branch Access Points 1 | . . . . . . . . 1 . . . . Unreport Threat 4 | . . . . . . . 1 2 . 1 . . Garrison Registry 1 | . . . . . . 1 . . . . . . Security Stations 1 | . . . . 1 . . . . . . . . Derelict Proto ID Bank 1 | . . 1 . . . . . . . . . . Fabricator Hacks . | . . . . . . . . . . . . . Repair Station Hacks 5 | . . . . . 2 . . . . 3 . . Scan Component 3 | . . . . . 1 . . . . 2 . . Repair 2 | . . . . . 1 . . . . 1 . . Recycling Unit Hacks 1 | . . . . . . . . . . 1 . . Retrieve Components 1 | . . . . . . . . . . 1 . . Scanalyzer 2 | . . . 2 . . . . . . . . . Insert Component 1 | . . . 1 . . . . . . . . . Analyze 1 | . . . 1 . . . . . . . . . Garrison Access Hacks 3 | . . . 1 . 1 . . 1 . . . . Unlock Access 2 | . . . 1 . 1 . . . . . . . Seal Access 1 | . . . . . . . . 1 . . . . Unauthorized Hacks 10 | . . . 2 . . . . 1 . 7 . . Terminals 5 | . . . 2 . . . . . . 3 . . Assimilate 1 | . . . . . . . . . . 1 . . Botnet 4 | . . . 2 . . . . . . 2 . . Fabricators 1 | . . . . . . . . 1 . . . . Haulers 1 | . . . . . . . . 1 . . . . Repair Stations . | . . . . . . . . . . . . . Recycling Units 4 | . . . . . . . . . . 4 . . Recyclers 1 | . . . . . . . . . . 1 . . Mask 3 | . . . . . . . . . . 3 . . Scanalyzers . | . . . . . . . . . . . . . Garrison Access . | . . . . . . . . . . . . . Data Cores Recovered 1 | . . . . . . . . 1 . . . . Used . | . . . . . . . . . . . . . Hacking Detections 30 | . 3 . 5 4 2 . 2 3 . 11 . . Full Trace Events 1 | . . . . . . . 1 . . . . . Feedback Events . | . . . . . . . . . . . . . Feedback Blocked . | . . . . . . . . . . . . . Robot Schematics Acquired . | . . . . . . . . . . . . . Robots Built . | . . . . . . . . . . . . . Authchips . | . . . . . . . . . . . . . Time . | . . . . . . . . . . . . . Total Robot Build Rating . | . . . . . . . . . . . . . Part Schematics Acquired 1 | . . . 1 . . . . . . . . . Parts Built . | . . . . . . . . . . . . . Authchips . | . . . . . . . . . . . . . Time . | . . . . . . . . . . . . . Total Part Build Rating . | . . . . . . . . . . . . . Parts Repaired 2 | . . . . . 1 . . . . 1 . . Time 83 | . . . . . 44 . . . . 39 . . Parts Recycled . | . . . . . . . . . . . . . Recycled Matter . | . . . . . . . . . . . . . Retrieved Matter . | . . . . . . . . . . . . . Retrieved Components 10 | . . . . . . . . . . 10 . . Parts Scanalyzed 1 | . . . 1 . . . . . . . . . Part Schematics Acquired 1 | . . . 1 . . . . . . . . . Parts Damaged . | . . . . . . . . . . . . . Bothacking | -11 -10 -10 -8 -8 -8 -8 -8 -7 -7 -7 -7 -7 ------------ Run | Yrd Mat Sub Mat Gar Mat Gar Mat Fac Was Fac Low Low Used RIF Installer . | . . . . . . . . . . . . . Robots Hacked . | . . . . . . . . . . . . . Non-combat . | . . . . . . . . . . . . . Combat . | . . . . . . . . . . . . . Robot Hacks Applied . | . . . . . . . . . . . . . Relay Couplers Released . | . . . . . . . . . . . . . Fabnet Peak Effective % . | . . . . . . . . . . . . . Robots Rewired 2 | . . . . 2 . . . . . . . . Allies Hacked 2 | . . . . 2 . . . . . . . . Hacks Repelled . | . . . . . . . . . . . . . Allies | -11 -10 -10 -8 -8 -8 -8 -8 -7 -7 -7 -7 -7 -------- Run | Yrd Mat Sub Mat Gar Mat Gar Mat Fac Was Fac Low Low Total Allies 6 | . . . . 5 . . . . . 1 . . Largest Group 4 | . . . . 4 1 1 . . . 1 . . Highest-Rated Group 246 | . . . . 246 20 20 . . . 26 . . Highest-Rated Ally 179 | . . . . 179 20 20 . . . 26 . . Total Orders 2 | . . . . . . . 2 . . . . . EXPLORE 2 | . . . . . . . 2 . . . . . Ally Attacks 54 | . . . . 45 . 9 . . . . . . Total Damage 1899 | . . . . 1478 . 421 . . . . . . Kills 21 | . . . . 18 . 3 . . . . . . Allies Corrupted . | . . . . . . . . . . . . . Allies Melted . | . . . . . . . . . . . . . Intel | -11 -10 -10 -8 -8 -8 -8 -8 -7 -7 -7 -7 -7 ------- Run | Yrd Mat Sub Mat Gar Mat Gar Mat Fac Was Fac Low Low Robot Analysis Total 1 | . 1 . . . . . . . . . . . Derelict Logs Recovered 4 | . . 2 . . . . . . . . 2 . Drone Launches 3 | . . . . . . . 3 . . . . . Drone Recoveries 1 | . . . . . . . 1 . . . . . Exploration | -11 -10 -10 -8 -8 -8 -8 -8 -7 -7 -7 -7 -7 ------------- Run | Yrd Mat Sub Mat Gar Mat Gar Mat Fac Was Fac Low Low Turns Passed 16341 | . 1718 5643 1276 1617 165 1031 848 959 102 1629 1020 333 Spaces Moved 9793 | 1 512 3169 635 841 69 532 336 505 204 2396 447 146 Core 103 | . . . . . . 58 . 40 . 4 . 1 Treads 6467 | . 342 3169 635 841 69 183 84 390 . 162 447 145 Legs 714 | 1 170 . . . . 291 252 . . . . . Wheels . | . . . . . . . . . . . . . Hover . | . . . . . . . . . . . . . Flight 2509 | . . . . . . . . 75 204 2230 . . Fastest Speed 40 | 120 120 160 156 158 162 50 120 40 40 40 163 50 Average Speed 131 | 120 183 160 157 161 162 158 160 149 40 49 163 162 Slowest Speed 500 | 120 320 160 250 162 162 260 235 235 80 500 163 245 Overloaded Moves . | . . . . . . . . . . . . . Propulsion Burnouts . | . . . . . . . . . . . . . Robots Hopped 15 | . . . . . . . . 2 . 13 . . Cave-ins Triggered . | . . . . . . . . . . . . . Exploration Rate (%) 45 | 2 67 97 42 78 6 38 33 13 84 51 53 24 Regions Visited 12 Branch Regions 3 Pre-discovered Areas 2 | . . . . . . . . . . . 2 . Known Exits Taken 4 | . . . 1 . 1 . . . . 1 1 . Unknown Exits Taken 4 | 1 1 1 . . . . 1 . . . . . Scrap Searched 21 | . . 14 . . . . . . . . 6 1 Spaces Dug 164 | . . 12 . 18 . 23 4 14 . 41 52 . Terrain Destroyed 586 | . 14 99 19 22 . 51 60 120 . 42 136 23 Melee 58 | . . . . 16 . . 1 . . 41 . . Projectile 79 | . . 12 10 3 . 2 22 21 . 1 . 8 AOE 449 | . 14 87 9 3 . 49 37 99 . . 136 15 Terrain Rammed . | . . . . . . . . . . . . . Walls Destroyed . | . . . . . . . . . . . . . Machines Disabled . | . . . . . . . . . . . . . Actions | -11 -10 -10 -8 -8 -8 -8 -8 -7 -7 -7 -7 -7 --------- Run | Yrd Mat Sub Mat Gar Mat Gar Mat Fac Was Fac Low Low Total 12461 | . 1218 3538 869 989 122 646 566 624 222 2751 723 193 Wait 1491 | . 623 65 137 29 49 7 128 29 . 183 237 4 Move 9750 | . 511 3168 634 839 68 530 335 501 203 2369 446 146 Hop 15 | . . . . . . . . 2 . 13 . . Pick Up 136 | . 14 38 21 2 . 23 1 4 2 25 6 . Fast Attach 99 | . 7 11 11 3 2 10 10 8 6 24 5 2 Attach 38 | . 1 5 5 . . 2 2 6 3 4 2 8 Detach 38 | . 4 4 3 1 1 1 1 2 3 14 3 1 Swap 85 | . 2 14 6 10 1 13 14 17 1 2 2 3 Drop 162 | . 10 44 25 5 1 12 17 8 4 27 7 2 Fire 442 | . 46 171 27 45 . 36 33 42 . 3 13 26 Melee 142 | . . . . 33 . 7 25 5 . 69 2 1 Ram . | . . . . . . . . . . . . . Kick . | . . . . . . . . . . . . . Crush . | . . . . . . . . . . . . . Escape Stasis 23 | . . . . . . 5 . . . 18 . . Rewire 22 | . . . . 22 . . . . . . . . Trap . | . . . . . . . . . . . . . Miscellaneous 18 | . . 18 . . . . . . . . . . Route ------- -11/Scrapyard -10/Materials (discovered 4 exits: [*Mat x2] / [*Min] / *Sub) -10/Subcaves (discovered 3 exits: *Mat x2 / Rec) -8/Materials (discovered 2 exits: *Fac / Gar) -8/Garrison (discovered 4 exits: *Mat x4) -8/Materials -8/Garrison (discovered 4 exits: *Mat x4) -8/Materials -7/Factory (discovered 4 exits: Sto x2 / *Low x2) -7/Waste -7/Factory (discovered 2 exits: *Fac / *Low) -7/Lower Caves -7/Lower Caves History --------- Turn | Location | Event 1 | -11/Scrapyard | Discovered new exit (range 0) 1 | -11/Scrapyard | Entered Materials 306 | -10/Materials | Build established: Mutant 452 | -10/Materials | Discovered new exit (range 13) 754 | -10/Materials | Discovered new exit (range 10) 754 | -10/Materials | Discovered new exit (range 12) 1693 | -10/Materials | Discovered new exit (range 6) 1719 | -10/Materials | Entered Subcaves 1882 | -10/Subcaves | Discovered new exit (range 11) 1890 | -10/Subcaves | Shifting Twisted Machinery released Scrap Shield 1940 | -10/Subcaves | A swath of the cavern ceiling suddenly collapsed 2059 | -10/Subcaves | Shifting Twisted Machinery released Flamer 2132 | -10/Subcaves | Ambushed by Subdweller buried in earth 2547 | -10/Subcaves | Core integrity fell below 50% 2777 | -10/Subcaves | Disturbed a concealed Subdweller 3011 | -10/Subcaves | Visited Clippyterm 3100 | -10/Subcaves | Shifting Twisted Machinery released Sub. Monowheel 3176 | -10/Subcaves | Shifting Twisted Machinery released Sub. Laser 3413 | -10/Subcaves | Shifting Twisted Machinery released Sub. Monowheel 3545 | -10/Subcaves | A swath of the cavern ceiling suddenly collapsed 3776 | -10/Subcaves | Discovered new exit (range 9) 3827 | -10/Subcaves | Identified exit to Recycling 4066 | -10/Subcaves | Disturbed a concealed Subdweller 4355 | -10/Subcaves | Ambushed by Subdweller buried in earth 4646 | -10/Subcaves | Build established: Subdweller-Mutant 5350 | -10/Subcaves | Ambushed by Subdweller buried in earth 5565 | -10/Subcaves | Visited 4L-MR0's lab 5938 | -10/Subcaves | Found Flightbrick 5951 | -10/Subcaves | Build established: Mutant 7278 | -10/Subcaves | Core integrity fell below 20% 7362 | -10/Subcaves | Entered Materials 7362 | -8/Materials | Evolved 4 slots: Propulsion x2, Utility x2 8217 | -8/Materials | Discovered new exit (range 16) 8637 | -8/Materials | Identified exit to Garrison 8638 | -8/Materials | Entered Garrison 8694 | -8/Garrison | Triggered checkpoint 8794 | -8/Garrison | Rescued AZ-K3N 8890 | -8/Garrison | Triggered checkpoint 9016 | -8/Garrison | Triggered checkpoint 9079 | -8/Garrison | Discovered new exit (range 11) 9166 | -8/Garrison | Triggered checkpoint 9168 | -8/Garrison | AZ-K3N assimilated hostile G-47 Trooper 9224 | -8/Garrison | Triggered checkpoint 9354 | -8/Garrison | Triggered checkpoint 9382 | -8/Garrison | Discovered new exit (range 5) 9454 | -8/Garrison | Discovered new exit (range 14) 9558 | -8/Garrison | Triggered checkpoint 9588 | -8/Garrison | Build established: Scavenger-Mutant 9614 | -8/Garrison | Learned Materials security intel 9648 | -8/Garrison | Triggered checkpoint 9649 | -8/Garrison | AZ-K3N assimilated hostile S-10 Pest 9736 | -8/Garrison | Discovered new exit (range 15) 10049 | -8/Garrison | Attempted to access garrison exit controls, blocked by remote lockdown 10255 | -8/Garrison | Entered Materials 10255 | -8/Materials | Accompanied by 1 ally 10316 | -8/Materials | Repaired Gauss Cannon 10419 | -8/Materials | Identified exit to Garrison 10420 | -8/Materials | Entered Garrison 10420 | -8/Garrison | Accompanied by 1 ally 10438 | -8/Garrison | Triggered checkpoint 10515 | -8/Garrison | Discovered new exit (range 3) 10606 | -8/Garrison | Triggered checkpoint 10698 | -8/Garrison | Discovered new exit (range 51) 10698 | -8/Garrison | Discovered new exit (range 71) 10698 | -8/Garrison | Discovered new exit (range 33) 10698 | -8/Garrison | Discovered new exit (range 31) 10722 | -8/Garrison | Triggered checkpoint 10759 | -8/Garrison | Triggered checkpoint 10808 | -8/Garrison | Destroyed 7 combat bots 10892 | -8/Garrison | Lost 3 parts (1p2n) 11146 | -8/Garrison | Build established: Mutant 11257 | -8/Garrison | Attempted to access garrison exit controls, blocked by remote lockdown 11451 | -8/Garrison | Entered Materials 11481 | -8/Materials | Build established: Scavenger-Mutant 11880 | -8/Materials | Discovered new exit (range 39) 12299 | -8/Materials | Entered Factory 12299 | -7/Factory | Evolved 2 slots: Utility x2 12727 | -7/Factory | Identified exit to Storage 12727 | -7/Factory | Identified exit to Lower Caves 13140 | -7/Factory | Cargo convoy interrupted 13174 | -7/Factory | Core integrity fell below 50% 13174 | -7/Factory | Attached Flightbrick, gained temporary slots: Utility x3 13202 | -7/Factory | Lost 14 parts (1p4n6u3w) 13258 | -7/Factory | Sucked down chute 13258 | -7/Factory | Entered Waste 13258 | -7/Waste | The area was eerily silent 13337 | -7/Waste | Discovered new exit (range 15) 13354 | -7/Waste | Identified exit to Factory 13360 | -7/Waste | Entered Factory 13442 | -7/Factory | Build established: Mutant 13477 | -7/Factory | Discovered new exit (range 5) 13479 | -7/Factory | Identified exit to Factory 13532 | -7/Factory | Discovered exit to Lower Caves (range 8) 13761 | -7/Factory | Repaired Broken Mic. Fission Core 14960 | -7/Factory | Build established: Hacker-Mutant 14989 | -7/Factory | Entered Lower Caves 15065 | -7/Lower Caves | Met a Warlord Commander 15066 | -7/Lower Caves | Learned location of Warlord (-5) 15067 | -7/Lower Caves | Warlord Commander delivered Encrypted Comm Array 15074 | -7/Lower Caves | Found Encrypted Comm Array 15114 | -7/Lower Caves | Learned location of Zion (-7) 15308 | -7/Lower Caves | Learned location of 1 exit from Proximity Caves 15984 | -7/Lower Caves | Discovered new exit (range 14) 16006 | -7/Lower Caves | Identified exit to Lower Caves 16009 | -7/Lower Caves | Entered another Lower Caves area 16011 | -7/Lower Caves | Attracted the attention of an 0b10 checkpoint 16241 | -7/Lower Caves | Attracted the attention of an 0b10 outpost 16268 | -7/Lower Caves | Core integrity fell below 20% 16293 | -7/Lower Caves | Build established: Mutant 16329 | -7/Lower Caves | Destroyed 8 combat bots 16342 | -7/Lower Caves | Released all parts (7) 16342 | -7/Lower Caves | Destroyed by G-47 Trooper with Particle Gun Last Messages --------------- 16332_ Overheating: Energy bleed (-2). 16334_ Med. Treads destroyed. 16335_ Overheating: Matter decay (-41). 16336_ Power failure, Mic. Fission Core shutdown. 16336_ Overheating: Energy bleed (-2). 16337_ Hrd. Medium Armor Plating destroyed. 16338_ Overheating: Imp. Targeting Computer damaged (-2). 16338_ Overheating: Hcp. Storage Unit damaged (-110). 16338_ Overheating: Imp. Signal Interpreter damaged (-4). 16338_ System corrupted: Matter fused (-6). 16339_ Overheating: Matter decay (-16). 16339_ Gatling Laser severed. 16341_ M-28 Smith repairs L-41 Fighter. 16342_ Released System Shield. 16342_ Released Imp. Targeting Computer. 16342_ Released Imp. Signal Interpreter. 16342_ Released Hcp. Storage Unit. 16342_ Released Mic. Fission Core. 16342_ Released Matter Filter. 16342_ Released Gatling Laser. Map ----- +----------------------------------------------------+ | ?????????????????????????????????????????????? # | | ??????????????????????????????????????????????# # | | ???????????????????????????????????????#??????# $# | | ???????????????????????????????????????# ????## # | | ????????????????????????????????? ##### #??## # | | ????????????????????????????????$ ### # | | ???????????????????????????????????? # | | ??????????????????????##??????????????????# # | | ?????????????????????## ??###?????????????## | | ?????????????????????# ### ##?????????????# | | ?????????????????????# #?????######??# | | ??????????? ????????# #?????# #??# | | ??????????? ?????## ##????# #### | | ????????????? #### ###??# | | ???????????????# ##?## # | | ????????????????# ##?# ######## | | ?????????? ??????# ### #????### | | ?????????? ??????# !% ##???# | | ????????? ?????# #;###%### " ##??# | | ????????? ??### # "#="##"%" ##?# | | ???????? ### # ?+ "# ## " #?### | | ????????? ?#### "# #??? | | ?????????# # % "# #? | | ?????????# #" % g# ## # | | ??????????# ?? %*[b# #### ### # | | ????????????## ####@#!# ## #####?? ## | | ?????????????## Yl[!! %" #????? #? | | ?????????????????#### !%m%g## #???# #####? | | ????????????????????# %[#!!#??????? #???##????? | | ????????????????????## # ??????????????????? | | ?????????????????????## # ????????????????? | | ??????????????????????## #### ???????????????? | | ???????????????????????#####???### ?????????????? | | ???????????????????????????????????##????????????? | | ?????????????????????????????????????????????????? | | ?????????????????????????????????????????????????? | | ?????????????????????????????????????????????????? | | ?????????????????????????????????????????????????? | | ?????????????????????????????????????????????????? | | ?????????????????????????????????????????????????? | | ?????????????????????????????????????????????????? | | ?????????????????????????????????????????????????? | | ?????????????????????????????????????????????????? | | ?????????????????????????????????????????????????? | | ?????????????????????????????????????????????????? | | ?????????????????????????????????????????????????? | | ?????????????????????????????????????????????????? | | ?????????????????????????????????????????????????? | | ?????????????????????????????????????????????????? | | | +----------------------------------------------------+ Best States ------------- Heat Dissipation 61 Energy Generation 21 Energy Capacity 325 Matter Stores 300 Matter Capacity 300 Sight Range 20 Robot Scan Range 15 Terrain Scan Density 210 ECM Strength 2 Jamming Range 12 EM Shielding 2 Armor Coverage 900 Resistance: KI 30 Propulsion Shielding 66 Evasion (%) 62 Targeting Accuracy 11 Armor Integrity Analysis 30 Recoil Reduction 4 Matter Filtering 30 Energy Filtering 30 Offensive Hacking 11 Defensive Hacking 11 Item Schematics ----------------- Adv. EMP Blaster | -8/Materials | Scanalyzed Robot Schematics ------------------ None Fabricated ------------ Nothing Alien Tech Used ----------------- None Achievements -------------- Infiltrator Challenges ------------ None Game ------ Seed DerelictCombatSuite Manual? 0 Play Time 02:10:16 Cumulative 132.4 hours Start 2024.04.15 @ 19:30:40 End 2024.04.15 @ 22:05:52 Sessions 1 Manual Loads 0 Difficulty Rogue Special Mode None Game No. 119 Rogue 119 Adventurer 0 Explorer 0 Win Type - Total 3 Types 2/0/0/1/0/0/0/0/0 Lore% 53 Gallery% 71 Achievement% 55 Wizard Run 0 Options --------- Layout 2 ASCII 0 Keyboard 1 Movement Numpad Keybinds 0 Fullscreen 1 Font 32/SmallcapsGlow Map View 77x44 Zoom Use 0% Tactical HUD 1 Map Filters NONE Filters NONE Steam 1 RUN: 520946d2-f6cc-4728-85b2-c4e0885246cb